bitfinex/quotes_BTCUSD_20250423
["timestamp","ask_amount","ask_price","bid_price","bid_amount"]
[1745439964232,1e-08,93755.0,93754.0,0.89508703]
[1745439966221,1e-08,93755.0,93754.0,1.21488703]
[1745439969290,1e-08,93755.0,93754.0,1.20388703]
[1745439969512,1e-08,93755.0,93754.0,1.20988703]
[1745439969748,1e-08,93755.0,93754.0,1.26588703]
[1745439970016,1e-08,93755.0,93754.0,1.25988703]
[1745439970264,0.0004252,93779.0,93778.0,0.56781048]
[1745439970504,0.00056295,93779.0,93778.0,0.76994062]
[1745439972359,0.00056295,93779.0,93778.0,0.77094062]
[1745439972598,0.00056295,93779.0,93778.0,0.67770062]
[1745439972842,0.00056295,93779.0,93778.0,0.79383243]
[1745439973081,0.00056295,93779.0,93778.0,0.79183243]
[1745439973742,0.00056295,93779.0,93778.0,0.79083243]
[1745439974671,0.00056295,93779.0,93778.0,0.79183243]
[1745439976270,0.00056295,93779.0,93778.0,0.79483243]
[1745439976448,0.00056295,93779.0,93778.0,0.78029158]
[1745439976672,0.00056295,93779.0,93778.0,0.77729158]
[1745439976866,0.00056295,93779.0,93778.0,0.77929158]
[1745439977072,0.00056295,93779.0,93778.0,0.67236144]
[1745439977631,0.00056295,93779.0,93778.0,0.67036144]
[1745439978826,0.00056295,93779.0,93778.0,0.66936144]
[1745439982025,0.00156295,93779.0,93778.0,0.66936144]
[1745439982442,0.00156295,93779.0,93778.0,0.57416144]
[1745439982652,0.00156295,93779.0,93778.0,0.66932144]
[1745439982844,0.00056295,93779.0,93778.0,0.66932144]
[1745439983254,0.00156295,93779.0,93778.0,0.66932144]
[1745439983535,0.00156295,93779.0,93778.0,0.32932144]
[1745439983741,0.00256295,93779.0,93778.0,0.32932144]
[1745439984960,0.00056295,93779.0,93778.0,0.32932144]
[1745439985233,0.00156295,93779.0,93778.0,0.32932144]
[1745439985414,0.00056295,93779.0,93778.0,0.32932144]
[1745439985816,0.00156295,93779.0,93778.0,0.32932144]
[1745439987751,0.00156295,93779.0,93778.0,0.77621158]
[1745439987967,1e-08,93780.0,93779.0,0.35454085]
[1745439988187,1e-08,93780.0,93779.0,0.4920953]
[1745439989315,1e-08,93780.0,93779.0,0.5872553]
[1745439990011,0.002,93809.0,93790.0,0.01066211]
[1745439990241,0.002,93809.0,93787.0,0.01066245]
[1745439990242,0.002,93809.0,93808.0,0.55320143]
[1745439990482,0.002,93809.0,93808.0,0.64836143]
[1745439990666,0.00210839,93809.0,93808.0,0.30836143]
[1745439991174,0.00210839,93809.0,93808.0,0.30740038]
[1745439993169,0.00210839,93809.0,93808.0,0.21224038]
[1745439993389,0.00210839,93809.0,93808.0,0.35260554]
[1745439999905,0.00210839,93809.0,93808.0,0.1328675]
[1745440000373,0.00210839,93809.0,93808.0,0.34606893]
[1745440000597,0.04760839,93809.0,93808.0,0.34606893]
[1745440001055,0.00210839,93809.0,93808.0,0.34606893]
[1745440003323,0.00074839,93809.0,93808.0,0.34606893]
[1745440006299,0.00074839,93809.0,93808.0,0.16146572]
[1745440007673,0.05014839,93809.0,93808.0,0.09516]
[1745440008150,0.05014839,93809.0,93801.0,0.31968]
[1745440008370,0.05014839,93809.0,93808.0,0.09516]
[1745440009697,0.05114839,93809.0,93808.0,0.09516]
[1745440009917,0.05014839,93809.0,93808.0,0.09516]
[1745440010346,0.05114839,93809.0,93808.0,0.09516]
[1745440010563,0.05014839,93809.0,93808.0,0.09516]
[1745440010778,0.05114839,93809.0,93808.0,0.09516]
[1745440014548,0.05114839,93809.0,93808.0,0.09512]
[1745440016582,0.05114839,93809.0,93805.0,0.09512]
[1745440017020,0.05114839,93809.0,93805.0,0.30832673]
[1745440017237,0.05114839,93809.0,93805.0,0.09512]
[1745440017471,0.00274839,93809.0,93807.0,0.21320214]
[1745440017691,0.00174839,93809.0,93807.0,0.21320214]
[1745440017906,0.00274839,93809.0,93807.0,0.21320214]
[1745440018836,0.00174839,93809.0,93807.0,0.21320214]
[1745440021536,0.00174839,93809.0,93808.0,0.00298448]
[1745440021537,0.00274839,93809.0,93808.0,0.00298448]
[1745440021759,0.00274839,93809.0,93808.0,0.44987462]
[1745440021975,0.00374839,93809.0,93808.0,0.44689014]
[1745440022457,0.00374839,93809.0,93808.0,0.55655099]
[1745440022706,0.00374839,93809.0,93808.0,0.60535099]
[1745440023171,0.00374839,93809.0,93807.0,0.21320214]
[1745440023172,0.00174839,93809.0,93807.0,0.21320214]
[1745440023407,0.00174839,93809.0,93807.0,0.09512]
[1745440023612,0.00174839,93809.0,93804.0,0.21320965]
[1745440023841,0.00174839,93809.0,93805.0,0.30832626]
[1745440024070,0.0489,93808.0,93805.0,0.09512]
[1745440024284,0.0489,93808.0,93800.0,0.21321762]
[1745440024525,0.0489,93808.0,93801.0,0.30833558]
[1745440024740,0.0489,93808.0,93803.0,0.01066063]
[1745440024951,0.0489,93808.0,93807.0,0.2132037]
[1745440025166,0.0489,93808.0,93804.0,0.21321052]
[1745440025386,0.00174839,93809.0,93804.0,0.21321052]
[1745440025387,0.00174839,93809.0,93807.0,0.21320252]
[1745440025607,0.00174839,93809.0,93807.0,0.30832252]
[1745440026513,0.001,93808.0,93807.0,0.30832252]
[1745440026731,0.00174839,93809.0,93807.0,0.30832252]
[1745440026941,0.00274839,93809.0,93807.0,0.30832252]
[1745440027609,0.00274839,93809.0,93807.0,0.31032252]
[1745440027826,0.00174839,93809.0,93807.0,0.31032252]
[1745440028041,0.00174839,93809.0,93807.0,0.31232252]
[1745440028470,0.00174839,93809.0,93807.0,0.31032252]
[1745440030620,0.00174839,93809.0,93807.0,0.31132252]
[1745440030827,0.00174839,93809.0,93807.0,0.30932252]
[1745440031255,0.00174839,93809.0,93807.0,0.31032252]
[1745440031469,0.00174839,93809.0,93807.0,0.30832252]
[1745440032339,0.00174839,93809.0,93808.0,0.09512]
[1745440034040,0.04894839,93809.0,93808.0,0.09512]
[1745440034702,0.04894839,93809.0,93808.0,0.30832143]
[1745440035958,0.04994839,93809.0,93808.0,0.30832143]
[1745440036581,0.04894839,93809.0,93808.0,0.30832143]
[1745440038321,0.04894839,93809.0,93808.0,0.21320143]
[1745440038516,0.04894839,93809.0,93808.0,0.30832143]
[1745440039036,0.00174839,93809.0,93808.0,0.30832143]
[1745440042790,0.00174839,93809.0,93808.0,0.21320143]
[1745440043036,0.00174839,93809.0,93808.0,0.30832143]
[1745440044949,0.00174839,93809.0,93808.0,0.21320143]
[1745440045146,0.00174839,93809.0,93808.0,0.30832143]
[1745440047484,0.05014839,93809.0,93808.0,0.21320143]
[1745440048093,0.09674839,93809.0,93808.0,0.21320143]
[1745440049080,0.09774839,93809.0,93808.0,0.21320143]
[1745440049280,0.09674839,93809.0,93808.0,0.21320143]
[1745440049511,0.09674839,93809.0,93808.0,0.23409324]
[1745440049696,0.09774839,93809.0,93808.0,0.21320143]
[1745440050149,0.09874839,93809.0,93808.0,0.21320143]
[1745440050963,0.09774839,93809.0,93808.0,0.21320143]
[1745440051324,0.09574839,93809.0,93808.0,0.21320143]
[1745440051524,0.09674839,93809.0,93808.0,0.21320143]
[1745440051741,0.09674839,93809.0,93808.0,0.23409324]
[1745440051944,0.09674839,93809.0,93808.0,0.21320143]
[1745440052149,0.09774839,93809.0,93808.0,0.21320143]
[1745440054890,0.09774839,93809.0,93808.0,0.21230688]
[1745440055624,0.05114839,93809.0,93808.0,0.21230688]
[1745440057662,0.00274839,93809.0,93808.0,0.21230688]
[1745440058294,0.00074839,93809.0,93808.0,0.21230688]
[1745440059318,0.00074839,93809.0,93808.0,0.21529121]
[1745440059926,0.00074839,93809.0,93808.0,0.55529121]
[1745440060129,0.00074839,93809.0,93808.0,0.55230688]
[1745440060584,0.00074839,93809.0,93808.0,0.65919702]
[1745440061699,0.00074839,93809.0,93808.0,0.75431702]
[1745440063531,0.000425,93817.0,93814.0,0.01065938]
[1745440063745,0.000425,93817.0,93816.0,0.34]
[1745440063944,0.000425,93817.0,93816.0,0.44689014]
[1745440065147,0.000425,93817.0,93816.0,0.66007339]
[1745440065535,0.000425,93817.0,93816.0,0.66107339]
[1745440065740,0.000425,93817.0,93816.0,0.66007339]
[1745440066524,0.000425,93817.0,93816.0,0.66107339]
[1745440066712,0.000425,93817.0,93816.0,0.32107339]
[1745440067121,0.000425,93817.0,93816.0,0.32207339]
[1745440068470,0.000425,93817.0,93816.0,0.41715339]
[1745440069133,0.000425,93817.0,93816.0,0.41615339]
[1745440069363,0.000425,93817.0,93816.0,0.41515339]
[1745440070923,0.000425,93817.0,93816.0,0.30826325]
[1745440072518,0.048925,93817.0,93816.0,0.30826325]
[1745440074345,0.049925,93817.0,93816.0,0.30826325]
[1745440074759,0.050925,93817.0,93816.0,0.30826325]
[1745440076466,0.050925,93817.0,93816.0,0.21318325]
[1745440076726,0.050925,93817.0,93816.0,0.30822325]
[1745440084311,0.002425,93817.0,93816.0,0.30822325]
[1745440085991,0.002425,93817.0,93816.0,0.21318325]
[1745440086232,0.002425,93817.0,93816.0,0.41511339]
[1745440086466,0.03252318,93831.0,93830.0,0.21315144]
[1745440086909,0.03252318,93831.0,93830.0,0.09504]
[1745440087147,0.03252318,93831.0,93826.0,0.09504]
[1745440087634,0.10689014,93830.0,93817.0,0.09504]
[1745440087872,0.0491,93829.0,93817.0,0.30822097]
[1745440088106,0.15898515,93829.0,93816.0,0.001]
[1745440088320,0.10689014,93828.0,93816.0,0.001]
[1745440088751,0.00299501,93827.0,93815.0,0.09504]
[1745440088974,0.10689014,93826.0,93815.0,0.09504]
[1745440089178,0.10689014,93826.0,93815.0,0.30822517]
[1745440089376,0.047,93825.0,93815.0,0.30822517]
[1745440089610,0.047,93823.0,93815.0,0.30822517]
[1745440089735,0.15389014,93823.0,93815.0,0.30822517]
[1745440090819,0.15389014,93823.0,93817.0,0.21318013]
[1745440091016,0.15389014,93823.0,93815.0,0.09504]
[1745440091263,0.15389014,93823.0,93816.0,0.21318325]
[1745440092050,0.15389014,93823.0,93819.0,0.21317516]
[1745440093012,0.15389014,93823.0,93816.0,0.21318325]
[1745440093215,0.15389014,93823.0,93818.0,0.21317793]
[1745440093844,0.15389014,93823.0,93815.0,0.09504]
[1745440094274,0.15489014,93823.0,93815.0,0.09504]
[1745440094473,0.15389014,93823.0,93815.0,0.09504]
[1745440094882,0.15489014,93823.0,93815.0,0.09504]
[1745440095267,0.15589014,93823.0,93815.0,0.09504]
[1745440097086,0.15589014,93823.0,93816.0,0.21318325]
[1745440097712,0.15589014,93823.0,93817.0,0.21317878]
[1745440098090,0.15389014,93823.0,93817.0,0.21317878]
[1745440098297,0.15389014,93823.0,93816.0,0.21318325]
[1745440098539,0.15489014,93823.0,93816.0,0.23407506]
[1745440098740,0.15389014,93823.0,93816.0,0.21318325]
[1745440098945,0.15489014,93823.0,93816.0,0.21318325]
[1745440099268,0.15389014,93823.0,93816.0,0.21318325]
[1745440099489,0.15389014,93823.0,93817.0,0.21317947]
[1745440100522,0.15489014,93823.0,93817.0,0.21317947]
[1745440100900,0.15489014,93823.0,93815.0,0.09504]
[1745440101252,0.15589014,93823.0,93815.0,0.09504]
[1745440101827,0.15389014,93823.0,93815.0,0.09504]
[1745440102207,0.15489014,93823.0,93815.0,0.09504]
[1745440103903,0.15489014,93823.0,93817.0,0.21317939]
[1745440104140,0.15489014,93823.0,93815.0,0.09504]
[1745440104555,0.15489014,93823.0,93819.0,0.21317524]
[1745440104765,0.15489014,93823.0,93817.0,0.21318097]
[1745440105372,0.15389014,93823.0,93817.0,0.21318097]
[1745440105934,0.15489014,93823.0,93817.0,0.21318097]
[1745440106117,0.15389014,93823.0,93817.0,0.21318097]
[1745440106570,0.15389014,93823.0,93817.0,0.05532847]
[1745440106958,0.15389014,93823.0,93815.0,0.09504]
[1745440107165,0.15389014,93823.0,93812.0,0.21319142]
[1745440107396,0.15389014,93823.0,93812.0,0.30819142]
[1745440107397,0.15489014,93823.0,93812.0,0.30819142]
[1745440107618,0.0458,93821.0,93809.0,0.00108]
[1745440107835,0.10689014,93820.0,93809.0,0.00108]
[1745440108048,0.10689014,93820.0,93809.0,0.09608]
[1745440110389,0.10689014,93820.0,93809.0,0.09524735]
[1745440111516,0.10789014,93820.0,93809.0,0.09524735]
[1745440112263,0.10689014,93820.0,93813.0,0.21318791]
[1745440113619,0.10789014,93820.0,93814.0,0.2131858]
[1745440114010,0.10789014,93820.0,93813.0,0.21318791]
[1745440114219,0.10689014,93820.0,93813.0,0.21318791]
[1745440114615,0.10789014,93820.0,93810.0,0.21319688]
[1745440114815,0.10789014,93820.0,93815.0,0.21318389]
[1745440114989,0.001,93820.0,93819.0,0.21317643]
[1745440115752,0.02037015,93835.0,93819.0,0.21317643]
[1745440115753,0.0452,93834.0,93825.0,0.21316239]
[1745440117932,0.0452,93834.0,93822.0,0.21316738]
[1745440118315,0.0452,93834.0,93822.0,0.30816738]
[1745440118761,0.0462,93834.0,93822.0,0.30816738]
[1745440120720,0.0462,93834.0,93822.0,0.095]
[1745440120932,0.0452,93834.0,93822.0,0.095]
[1745440121323,0.0452,93834.0,93824.0,0.21316507]
[1745440122409,0.0462,93834.0,93824.0,0.21316507]
[1745440122820,0.0462,93834.0,93825.0,0.21316109]
[1745440122963,0.0462,93834.0,93826.0,0.21315892]
[1745440123393,0.0462,93834.0,93825.0,0.21316106]
[1745440124034,0.0452,93834.0,93825.0,0.21316106]
[1745440124186,0.0452,93834.0,93826.0,0.21315896]
[1745440124385,0.0462,93834.0,93826.0,0.21315896]
[1745440124801,0.0472,93834.0,93824.0,0.21316507]
[1745440125051,0.0462,93834.0,93824.0,0.21316507]
[1745440125482,0.0472,93834.0,93824.0,0.21316507]
[1745440125671,0.0452,93834.0,93824.0,0.21316507]
[1745440125872,0.0452,93834.0,93822.0,0.30816933]
[1745440126081,0.0462,93834.0,93822.0,0.30816933]
[1745440126277,0.0462,93834.0,93819.0,0.21317603]
[1745440126540,0.0462,93834.0,93822.0,0.095]
[1745440127256,0.0452,93834.0,93822.0,0.095]
[1745440128079,0.0462,93834.0,93822.0,0.095]
[1745440129937,0.10689014,93833.0,93822.0,0.095]
[1745440130157,0.3678231,93832.0,93822.0,0.095]
[1745440130397,0.15409014,93831.0,93814.0,0.095]
[1745440130849,0.0472,93830.0,93814.0,0.095]
[1745440131062,0.10988515,93829.0,93814.0,0.095]
[1745440131619,0.10988515,93829.0,93814.0,0.096]
[1745440131823,0.10988515,93829.0,93814.0,0.095]
[1745440132027,0.0496,93828.0,93814.0,0.095]
[1745440132257,0.0472,93826.0,93814.0,0.096]
[1745440132462,0.10689014,93825.0,93814.0,0.096]
[1745440133290,0.10689014,93825.0,93814.0,0.097]
[1745440133906,0.10689014,93825.0,93814.0,0.096]
[1745440135112,0.10789014,93825.0,93811.0,0.08671304]
[1745440135319,0.10889014,93825.0,93813.0,0.21318905]
[1745440135523,0.10889014,93825.0,93811.0,0.08671304]
[1745440135741,0.10789014,93825.0,93811.0,0.08671304]
[1745440136186,0.10889014,93825.0,93811.0,0.08671304]
[1745440136390,0.3678231,93821.0,93809.0,0.00024735]
[1745440136596,0.15868515,93820.0,93809.0,0.00024735]
[1745440136814,0.0481,93819.0,93809.0,0.00024735]
[1745440137026,0.10689014,93818.0,93809.0,0.00024735]
[1745440137242,0.15559014,93818.0,93809.0,0.00024735]
[1745440138288,0.15659014,93818.0,93809.0,0.00024735]
[1745440138505,0.15559014,93818.0,93809.0,0.00024735]
[1745440138986,0.15659014,93818.0,93809.0,0.00024735]
[1745440139809,0.15759014,93818.0,93809.0,0.00024735]
[1745440143340,0.0494,93817.0,93809.0,0.00024735]
[1745440143563,0.0494,93814.0,93809.0,0.00024735]
[1745440143792,0.0494,93812.0,93809.0,0.00024735]
[1745440143987,0.10988515,93811.0,93809.0,0.00024735]
[1745440144217,0.0494,93810.0,93809.0,0.00024735]
[1745440144350,0.15629014,93810.0,93809.0,0.00024735]
[1745440145582,0.15929014,93810.0,93809.0,0.00024735]
[1745440147506,0.16229014,93810.0,93809.0,0.00024735]
[1745440149311,0.83589189,93810.0,93809.0,0.00024735]
[1745440149527,0.0481,93793.0,93771.0,0.0978102]
[1745440149724,0.0481,93788.0,93771.0,0.0978102]
[1745440149993,0.10689014,93787.0,93771.0,0.0978102]
[1745440150245,0.11755259,93787.0,93771.0,0.0028502]
[1745440150451,0.0451,93786.0,93771.0,0.0028502]
[1745440150679,0.10689014,93785.0,93771.0,0.0028502]
[1745440150966,0.0984,93784.0,93771.0,0.0028502]
[1745440151178,0.10689014,93783.0,93771.0,0.0028502]
[1745440151388,0.10689014,93783.0,93781.0,0.021]
[1745440151632,0.10689014,93783.0,93781.0,0.02]
[1745440152425,0.10789014,93783.0,93781.0,0.02]
[1745440153169,0.11088515,93783.0,93781.0,0.02]
[1745440153804,0.10789014,93783.0,93781.0,0.02]
[1745440154027,0.58874912,93782.0,93781.0,0.02]
[1745440154254,0.70328997,93782.0,93781.0,0.00934987]
[1745440154473,0.01454085,93779.0,93771.0,0.0028502]
[1745440154732,0.558526,93779.0,93771.0,0.0028502]
[1745440154928,0.66242113,93779.0,93771.0,0.0028502]
[1745440155156,0.87568849,93779.0,93771.0,0.0028502]
[1745440155361,0.01066518,93763.0,93742.0,0.29036428]
[1745440155606,0.36832829,93760.0,93735.0,0.21336598]
[1745440155836,0.10988515,93759.0,93735.0,0.21336598]
[1745440156444,0.10988515,93759.0,93737.0,0.21336188]
[1745440156626,0.10689014,93759.0,93737.0,0.21336188]
[1745440156896,0.10689014,93759.0,93732.0,0.31989082]
[1745440156897,0.10689014,93759.0,93740.0,0.21771592]
[1745440157116,0.10689014,93759.0,93741.0,0.21335381]
[1745440157541,0.10689014,93759.0,93740.0,0.00636]
[1745440157750,0.10689014,93759.0,93740.0,0.00936]
[1745440158036,0.10689014,93759.0,93740.0,0.00736]
[1745440158237,0.10689014,93759.0,93740.0,0.00636]
[1745440158433,0.10689014,93759.0,93741.0,0.002]
[1745440159957,0.10689014,93759.0,93740.0,0.00436]
[1745440160160,0.10689014,93759.0,93741.0,0.002]
[1745440160759,0.10689014,93759.0,93740.0,0.00436]
[1745440160968,0.10689014,93759.0,93741.0,0.002]
[1745440163756,0.10689014,93759.0,93741.0,0.004]
[1745440164515,0.10689014,93759.0,93742.0,0.00298686]
[1745440164749,0.10689014,93759.0,93745.0,0.21334292]
[1745440164959,0.10689014,93759.0,93747.0,0.21334013]
[1745440165394,0.10689014,93759.0,93745.0,0.21334292]
[1745440165592,0.10689014,93759.0,93741.0,0.21735241]
[1745440166001,0.10689014,93759.0,93741.0,0.21335241]
[1745440166212,0.10689014,93759.0,93742.0,0.002]
[1745440166414,0.10689014,93759.0,93742.0,0.004]
[1745440166645,0.10689014,93759.0,93742.0,0.002]
[1745440166859,0.10689014,93759.0,93741.0,0.21535241]
[1745440167093,0.10689014,93759.0,93742.0,0.21334958]
[1745440167489,0.10689014,93759.0,93742.0,0.21534958]
[1745440167706,0.10689014,93759.0,93742.0,0.21334958]
[1745440167915,0.10689014,93759.0,93742.0,0.21534958]
[1745440168316,0.10689014,93759.0,93745.0,0.21334283]
[1745440169410,0.10689014,93759.0,93748.0,0.21333778]
[1745440170281,0.10689014,93759.0,93749.0,0.2133339]
[1745440172024,0.0461,93767.0,93750.0,0.21333333]
[1745440172244,0.0461,93767.0,93749.0,0.2133356]
[1745440172245,0.10689014,93766.0,93753.0,0.2133262]
[1745440172457,0.10689014,93766.0,93753.0,0.21332473]
[1745440172672,0.10689014,93766.0,93754.0,0.21332206]
[1745440172866,0.10689014,93766.0,93751.0,0.01968044]
[1745440173243,0.10689014,93766.0,93752.0,0.02952492]
[1745440173808,0.10689014,93766.0,93753.0,0.01968044]
[1745440173992,0.10789014,93766.0,93753.0,0.01968044]
[1745440174212,0.10789014,93766.0,93754.0,0.02952492]
[1745440174646,0.10789014,93766.0,93755.0,0.01968044]
[1745440175072,0.10789014,93766.0,93756.0,0.02952492]
[1745440175995,0.10689014,93766.0,93757.0,0.01968044]
[1745440176200,0.10689014,93766.0,93757.0,0.02952492]
[1745440176399,0.10689014,93766.0,93758.0,0.01968044]
[1745440176600,0.10689014,93766.0,93759.0,0.01968044]
[1745440177072,0.10689014,93766.0,93760.0,0.02952492]
[1745440177809,0.10689014,93766.0,93761.0,0.01968044]
[1745440178264,0.10689014,93766.0,93761.0,0.02952492]
[1745440178489,0.10689014,93766.0,93762.0,0.01968044]
[1745440178684,0.10988515,93766.0,93762.0,0.01968044]
[1745440178889,0.10988515,93766.0,93763.0,0.01968044]
[1745440179094,0.11088515,93766.0,93763.0,0.01968044]
[1745440179316,0.12254999,93766.0,93764.0,0.01968044]
[1745440179533,0.2132992,93765.0,93764.0,0.02952492]
[1745440179770,0.75518934,93765.0,93764.0,0.02952492]
[1745440180218,0.75518934,93765.0,93764.0,0.00984448]
[1745440180621,0.01066587,93757.0,93740.0,0.00436]
[1745440180822,0.15578515,93756.0,93740.0,0.00436]
[1745440181035,0.36832829,93750.0,93740.0,0.00436]
[1745440181257,0.01066746,93743.0,93740.0,0.00436]
[1745440181500,0.15269014,93742.0,93740.0,0.00436]
[1745440182055,0.15269014,93742.0,93740.0,0.00482151]
[1745440182971,0.15369014,93742.0,93740.0,0.00482151]
[1745440183189,0.15469014,93742.0,93740.0,0.00482151]
[1745440186036,0.0467,93741.0,93740.0,0.00482151]
[1745440186272,0.15359014,93741.0,93740.0,0.00482151]
[1745440187983,0.15459014,93741.0,93740.0,0.00482151]
[1745440188417,0.15359014,93741.0,93740.0,0.00482151]
[1745440188637,0.10889014,93741.0,93740.0,0.00482151]
[1745440189007,0.10989014,93741.0,93740.0,0.00482151]
[1745440189188,0.10689014,93741.0,93740.0,0.00482151]
[1745440189707,0.10889014,93741.0,93740.0,0.00482151]
[1745440194000,0.19979014,93741.0,93740.0,0.00482151]
[1745440194415,0.659326,93741.0,93740.0,0.00482151]
[1745440194631,0.0461,93737.0,93731.0,0.002]
[1745440194874,0.44689014,93733.0,93732.0,0.00095839]
[1745440196366,0.44889014,93733.0,93732.0,0.00095839]
[1745440196575,0.44689014,93733.0,93732.0,0.00095839]
[1745440197002,0.44889014,93733.0,93732.0,0.00095839]
[1745440197486,0.44801014,93733.0,93732.0,0.00095839]
[1745440197698,0.45001014,93733.0,93732.0,0.00095839]
[1745440198334,0.44801014,93733.0,93732.0,0.00095839]
[1745440198546,0.44601014,93733.0,93732.0,0.00095839]
[1745440198929,0.44801014,93733.0,93732.0,0.00095839]
[1745440199138,0.44701014,93733.0,93732.0,0.00095839]
[1745440200428,0.44601014,93733.0,93732.0,0.00095839]
[1745440200819,0.44701014,93733.0,93732.0,0.00095839]
[1745440201350,0.10701014,93733.0,93732.0,0.00095839]
[1745440202610,0.10601014,93733.0,93732.0,0.00095839]
[1745440204196,0.10601014,93733.0,93732.0,0.00195839]
[1745440204646,0.10601014,93733.0,93732.0,0.00095839]
[1745440206795,0.3868,93741.0,93732.0,0.00095839]
[1745440206796,0.001,93741.0,93732.0,0.00095839]
[1745440207147,0.10689014,93740.0,93732.0,0.00095839]
[1745440208992,0.001,93741.0,93739.0,0.21335744]
[1745440210231,0.001,93741.0,93738.0,0.21335876]
[1745440210630,0.001,93741.0,93739.0,0.21335657]
[1745440212069,0.001,93741.0,93739.0,0.21435657]
[1745440212970,0.001,93741.0,93739.0,0.21535657]
[1745440215511,0.001,93741.0,93740.0,0.01977508]
[1745440217195,0.001,93741.0,93740.0,0.02077508]
[1745440217399,0.001,93741.0,93740.0,0.01977508]
[1745440217586,0.001,93741.0,93740.0,0.04166689]
[1745440217790,0.001,93741.0,93740.0,0.02077508]
[1745440218625,0.001,93741.0,93740.0,0.02177508]
[1745440219229,0.001,93741.0,93740.0,0.03166271]
[1745440221648,0.001,93741.0,93740.0,0.03266271]
[1745440221862,0.001,93741.0,93740.0,0.23773944]
[1745440222063,0.001,93741.0,93740.0,0.5152295]
[1745440222377,0.001,93741.0,93740.0,0.52977035]
[1745440222577,0.001,93741.0,93740.0,0.86977035]
[1745440222790,0.001,93741.0,93740.0,0.86877035]
[1745440222994,0.001,93741.0,93740.0,0.86777035]
[1745440223196,0.001,93741.0,93740.0,0.87277035]
[1745440223397,0.001,93741.0,93740.0,0.87077035]
[1745440223752,0.001,93741.0,93740.0,0.87277035]
[1745440224183,0.001,93741.0,93740.0,0.87877035]
[1745440224562,0.001,93741.0,93740.0,0.86777035]
[1745440224770,0.001,93741.0,93740.0,0.87877035]
[1745440224985,0.001,93741.0,93740.0,0.8642295]
[1745440225960,0.001,93741.0,93740.0,0.9541895]
[1745440226405,0.001,93741.0,93740.0,0.9591895]
[1745440227355,0.001,93741.0,93740.0,0.9531895]
[1745440227598,0.001,93741.0,93740.0,0.93941442]
[1745440228067,0.001,93741.0,93740.0,0.93441442]
[1745440228860,0.001,93741.0,93740.0,0.95414293]
[1745440229223,0.001,93741.0,93740.0,0.94814293]
[1745440229428,0.001,93741.0,93740.0,0.95914293]
[1745440229630,0.001,93741.0,93740.0,0.93941442]
[1745440230931,0.0855144,93767.0,93761.0,0.21330817]
[1745440231808,0.0855144,93767.0,93757.0,0.21331718]
[1745440232018,0.0855144,93767.0,93759.0,0.21331223]
[1745440232222,0.08597575,93767.0,93760.0,0.21330852]
[1745440232457,0.08597575,93767.0,93761.0,0.001]
[1745440232640,0.08597575,93767.0,93761.0,0.002]
[1745440232853,0.00046135,93767.0,93762.0,0.21330603]
[1745440233057,0.00046135,93767.0,93763.0,0.21330375]
[1745440233254,0.00046135,93767.0,93753.0,0.01066632]
[1745440233255,0.00046135,93767.0,93765.0,0.21329724]
[1745440235319,0.00046135,93767.0,93757.0,0.21331721]
[1745440235514,0.00046135,93767.0,93755.0,0.21332129]
[1745440235721,0.00046135,93767.0,93752.0,0.29036428]
[1745440235722,0.00046135,93767.0,93761.0,0.21330817]
[1745440235922,0.00046135,93767.0,93763.0,0.21330333]
[1745440236127,0.00046135,93767.0,93765.0,0.21329903]
[1745440236419,0.00046135,93767.0,93766.0,0.01974439]
[1745440237642,0.00146135,93767.0,93766.0,0.01974439]
[1745440237847,0.00246135,93767.0,93766.0,0.01974439]
[1745440238778,0.00246135,93767.0,93764.0,0.21330148]
[1745440238779,0.00146135,93767.0,93764.0,0.21330148]
[1745440238961,0.00146135,93767.0,93766.0,0.002]
[1745440239161,0.00046135,93767.0,93766.0,0.002]
[1745440239595,0.00046135,93767.0,93766.0,0.003]
[1745440239768,0.00046135,93767.0,93766.0,0.001]
[1745440240316,0.00046135,93767.0,93766.0,0.003]
[1745440240525,0.00046135,93767.0,93766.0,0.002]
[1745440240754,0.00046135,93767.0,93766.0,0.003]
[1745440245560,0.00046135,93767.0,93764.0,0.22396655]
[1745440245561,0.00046135,93767.0,93764.0,0.21249989]
[1745440245768,0.00046135,93767.0,93765.0,0.21329903]
[1745440248268,0.00046135,93767.0,93765.0,0.21429903]
[1745440248965,0.00046135,93767.0,93765.0,0.21529903]
[1745440249510,0.00046135,93767.0,93766.0,0.00298577]
[1745440250112,0.00046135,93767.0,93766.0,0.29036428]
[1745440251744,0.00046135,93767.0,93766.0,0.29236428]
[1745440252138,0.00046135,93767.0,93766.0,0.34126428]
[1745440252321,0.00046135,93767.0,93766.0,0.34226428]
[1745440252514,0.00046135,93767.0,93766.0,0.34126428]
[1745440252741,0.00046135,93767.0,93766.0,0.34226428]
[1745440252905,0.00046135,93767.0,93766.0,0.34126428]
[1745440254281,0.00046135,93767.0,93766.0,0.34026428]
[1745440255021,0.00046135,93767.0,93766.0,0.34126428]
[1745440255256,0.00046135,93767.0,93766.0,0.29136428]
[1745440255489,0.00046135,93767.0,93766.0,0.29236428]
[1745440255713,0.00046135,93767.0,93766.0,0.29336428]
[1745440255918,0.00046135,93767.0,93766.0,0.31425609]
[1745440256123,0.00046135,93767.0,93766.0,0.29236428]
[1745440256326,0.00046135,93767.0,93766.0,0.29336428]
[1745440256923,0.00046135,93767.0,93766.0,0.38828428]
[1745440259832,0.00046135,93767.0,93766.0,0.54037442]
[1745440260056,0.00046135,93767.0,93766.0,0.55491527]
[1745440260305,0.00046135,93767.0,93766.0,0.60421527]
[1745440260981,0.00046135,93767.0,93766.0,0.94421527]
[1745440261426,0.00046135,93767.0,93766.0,0.94221527]
[1745440261637,0.00046135,93767.0,93766.0,0.94321527]
[1745440262053,0.00046135,93767.0,93766.0,0.94521527]
[1745440262488,0.00046135,93767.0,93766.0,0.94321527]
[1745440262695,0.00046135,93767.0,93766.0,0.94521527]
[1745440264716,0.00046135,93767.0,93766.0,0.94517527]
[1745440265140,0.00046135,93767.0,93766.0,0.83613442]
[1745440270564,0.00046135,93767.0,93766.0,0.74125442]
[1745440270782,0.00046135,93767.0,93766.0,0.83613442]
[1745440275544,0.00046135,93767.0,93766.0,0.85067527]
[1745440275752,0.00046135,93767.0,93766.0,0.89847527]
[1745440275949,0.00046135,93767.0,93766.0,0.71418772]
[1745440276800,0.00046135,93767.0,93766.0,0.73396635]
[1745440278280,0.00046135,93767.0,93766.0,0.73196635]
[1745440278484,0.00046135,93767.0,93766.0,0.72996635]
[1745440278695,0.00046135,93767.0,93766.0,0.73496635]
[1745440279107,0.00046135,93767.0,93766.0,0.73196635]
[1745440279315,0.00046135,93767.0,93766.0,0.73696635]